bitfinex-derivatives/quotes_BTCF0:USTF0_20240917
["timestamp","ask_amount","ask_price","bid_price","bid_amount"]
[1726569292438,0.1018425,59218.0,59217.0,0.0028]
[1726569293044,0.2618425,59218.0,59217.0,0.0028]
[1726569297143,0.32241764,59218.0,59217.0,0.0028]
[1726569298754,0.07797964,59218.0,59217.0,0.087239]
[1726569298954,0.0174045,59218.0,59217.0,0.087239]
[1726569304463,0.1018425,59218.0,59217.0,0.0028]
[1726569304768,0.1774045,59218.0,59217.0,0.087239]
[1726569305869,0.2618425,59218.0,59217.0,0.0028]
[1726569307356,0.1774045,59218.0,59217.0,0.0028]
[1726569307561,0.2618425,59218.0,59217.0,0.0028]
[1726569310470,0.1862805,59218.0,59217.0,0.0028]
[1726569310661,0.3462805,59218.0,59217.0,0.0028]
[1726569311169,0.084453,59207.0,59204.0,0.0039]
[1726569311367,0.244453,59207.0,59204.0,0.00104]
[1726569311665,0.244453,59207.0,59202.0,0.3213]
[1726569311869,0.244453,59207.0,59202.0,0.40576]
[1726569312065,0.244453,59207.0,59203.0,0.445258]
[1726569312373,0.246053,59207.0,59203.0,0.445258]
[1726569312675,0.246053,59207.0,59203.0,0.084458]
[1726569312970,0.26371417,59207.0,59206.0,0.00353344]
[1726569313371,0.26471417,59207.0,59206.0,0.00453344]
[1726569313964,0.18026117,59207.0,59206.0,0.00453344]
[1726569314170,0.02026117,59207.0,59206.0,0.08898844]
[1726569319469,0.02026117,59207.0,59206.0,0.00453344]
[1726569319470,0.10471417,59207.0,59206.0,0.00453344]
[1726569320087,0.02026117,59207.0,59206.0,0.08898844]
[1726569320970,0.10471417,59207.0,59206.0,0.00453344]
[1726569321875,0.02026117,59207.0,59206.0,0.08898844]
[1726569324772,0.02026117,59207.0,59206.0,0.08518844]
[1726569330275,0.10471417,59207.0,59206.0,0.08518844]
[1726569330480,0.02026117,59207.0,59206.0,0.08518844]
[1726569331587,0.02026117,59207.0,59206.0,0.00073344]
[1726569331885,0.26471417,59207.0,59206.0,0.00073344]
[1726569332580,0.18026117,59207.0,59206.0,0.08518844]
[1726569333793,0.02026117,59207.0,59206.0,0.08518844]
[1726569334285,0.02026117,59207.0,59206.0,0.53044344]
[1726569334483,0.02026117,59207.0,59206.0,0.44598844]
[1726569336589,0.02026117,59207.0,59206.0,0.44138844]
[1726569339183,0.02126117,59207.0,59206.0,0.44238844]
[1726569339688,0.12226117,59207.0,59206.0,0.44338844]
[1726569339883,0.20671417,59207.0,59206.0,0.44338844]
[1726569340680,0.20671417,59207.0,59206.0,0.3628]
[1726569348096,0.29116717,59207.0,59206.0,0.002]
[1726569350899,0.20671417,59207.0,59206.0,0.002]
[1726569359298,0.12226117,59207.0,59206.0,0.002]
[1726569359485,0.20671417,59207.0,59206.0,0.002]
[1726569360295,0.10671417,59207.0,59206.0,0.002]
[1726569360497,0.20671417,59207.0,59206.0,0.002]
[1726569363000,0.29116717,59207.0,59206.0,0.002]
[1726569363200,0.65196717,59207.0,59206.0,0.002]
[1726569363399,0.63642017,59207.0,59206.0,0.002]
[1726569363590,0.184466,59198.0,59197.0,0.00253382]
[1726569363787,0.268932,59198.0,59197.0,0.00253382]
[1726569363997,0.269332,59198.0,59197.0,0.00253382]
[1726569364195,0.184866,59198.0,59197.0,0.00253382]
[1726569364396,0.184866,59198.0,59186.0,0.0039]
[1726569364397,1.20716,59198.0,59186.0,0.0039]
[1726569364598,1.20716,59198.0,59179.0,0.3608]
[1726569364599,0.084483,59186.0,59183.0,0.0039]
[1726569364796,0.084483,59186.0,59179.0,0.445293]
[1726569364797,0.00835454,59186.0,59179.0,0.445293]
[1726569365000,0.0004,59186.0,59180.0,0.084491]
[1726569365197,0.0004,59186.0,59179.0,0.3608]
[1726569365198,0.0004,59186.0,59185.0,0.084485]
[1726569365404,0.0004,59186.0,59185.0,0.184485]
[1726569365790,0.0024,59186.0,59185.0,0.545285]
[1726569365996,0.0024,59186.0,59185.0,0.445285]
[1726569369309,0.246883,59186.0,59185.0,0.3608]
[1726569372502,0.246883,59186.0,59181.0,0.084489]
[1726569372717,0.0078,59200.0,59177.0,0.89838]
[1726569372718,0.36102481,59240.0,59204.0,0.3608]
[1726569373005,0.36102481,59240.0,59182.0,0.50688]
[1726569373006,0.02497268,59220.0,59219.0,0.3531]
[1726569373196,0.00088,59222.0,59219.0,0.3531]
[1726569373396,0.5066,59221.0,59219.0,0.34380426]
[1726569373600,0.51508244,59221.0,59219.0,0.34300426]
[1726569374009,0.002,59220.0,59219.0,0.34300426]
[1726569374203,0.176,59220.0,59219.0,0.34300426]
[1726569374407,0.6826,59220.0,59219.0,0.34300426]
[1726569375606,0.69765922,59220.0,59219.0,0.34400426]
[1726569375807,0.17705922,59220.0,59219.0,0.34400426]
[1726569376103,0.17905922,59220.0,59219.0,0.34500426]
[1726569376703,0.19105922,59220.0,59219.0,0.34500426]
[1726569378608,0.19105922,59220.0,59219.0,0.3628]
[1726569381399,0.19105922,59220.0,59219.0,0.447236]
[1726569384010,0.03105922,59220.0,59219.0,0.3628]
[1726569384311,0.19105922,59220.0,59219.0,0.3628]
[1726569387409,0.25163454,59220.0,59219.0,0.3628]
[1726569389121,0.33606954,59220.0,59219.0,0.3628]
[1726569395423,0.27549422,59220.0,59219.0,0.3628]
[1726569396514,0.11549422,59220.0,59219.0,0.3628]
[1726569396714,0.27549422,59220.0,59219.0,0.3628]
[1726569397026,0.35992922,59220.0,59219.0,0.3628]
[1726569397236,0.27549422,59220.0,59219.0,0.3628]
[1726569397523,0.19992922,59220.0,59219.0,0.3628]
[1726569397713,0.44436422,59220.0,59219.0,0.3350841]
[1726569398529,0.59376001,59226.0,59219.0,0.3350841]
[1726569398530,0.00096001,59226.0,59225.0,0.084428]
[1726569398831,0.00021091,59229.0,59225.0,0.3616]
[1726569399020,0.00021091,59229.0,59228.0,0.445223]
[1726569399327,0.01652826,59238.0,59228.0,0.3608]
[1726569399629,0.00022481,59240.0,59228.0,0.3608]
[1726569399630,0.00861132,59240.0,59237.0,0.3616]
[1726569399813,0.00022481,59240.0,59239.0,0.0008]
[1726569400414,0.00865941,59240.0,59239.0,0.0008]
[1726569400725,0.00022481,59240.0,59239.0,0.0008]
[1726569400925,0.16022481,59240.0,59239.0,0.0008]
[1726569401124,0.16867715,59240.0,59239.0,0.0008]
[1726569401318,0.17267715,59240.0,59239.0,0.0018]
[1726569402017,0.17467715,59240.0,59239.0,0.0028]
[1726569402513,0.23523193,59240.0,59239.0,0.0028]
[1726569404419,0.17467715,59240.0,59239.0,0.0028]
[1726569407324,0.17467715,59240.0,59239.0,0.3636]
[1726569409141,0.06055478,59241.0,59240.0,0.084406]
[1726569409338,0.06055478,59241.0,59240.0,0.372906]
[1726569409629,0.06904819,59241.0,59240.0,0.372906]
[1726569409829,0.06904819,59241.0,59240.0,1.479306]
[1726569410032,0.26942551,59252.0,59241.0,0.5064]
[1726569410229,0.26942551,59252.0,59250.0,0.806792]
[1726569410421,0.1765938,59251.0,59250.0,0.64172081]
[1726569410820,0.0165938,59251.0,59250.0,0.64172081]
[1726569411231,0.0175938,59251.0,59250.0,0.72611281]
[1726569411633,0.0175938,59251.0,59250.0,0.64172081]
[1726569411825,0.0175938,59251.0,59250.0,0.64272081]
[1726569411826,0.1049838,59251.0,59250.0,0.64272081]
[1726569412631,0.1039838,59251.0,59250.0,0.64272081]
[1726569412830,0.1039838,59251.0,59250.0,0.64372081]
[1726569413028,0.0195938,59251.0,59250.0,0.64372081]
[1726569413332,0.0195938,59251.0,59250.0,0.72811281]
[1726569414128,0.0195938,59251.0,59250.0,0.73449848]
[1726569415229,0.2954938,59251.0,59250.0,0.73449848]
[1726569415433,0.2954938,59251.0,59250.0,0.89349848]
[1726569415434,0.2924938,59251.0,59250.0,0.89349848]
[1726569415735,0.0445,59256.0,59255.0,0.084385]
[1726569416041,0.06086316,59256.0,59255.0,0.445985]
[1726569416225,0.06086316,59256.0,59255.0,0.45237067]
[1726569417241,0.00025263,59261.0,59260.0,0.084378]
[1726569417531,0.01667605,59261.0,59260.0,0.445978]
[1726569417734,0.17667605,59261.0,59260.0,0.3616]
[1726569418141,0.01667605,59261.0,59260.0,0.3616]
[1726569418332,0.01667605,59261.0,59260.0,0.36798567]
[1726569418931,0.01667605,59261.0,59260.0,0.36898567]
[1726569419127,0.10105205,59261.0,59260.0,0.36998567]
[1726569419537,0.01667605,59261.0,59260.0,0.36998567]
[1726569419930,0.10105205,59261.0,59260.0,0.36998567]
[1726569420827,0.01667605,59261.0,59260.0,0.36998567]
[1726569421538,0.10105205,59261.0,59260.0,0.36998567]
[1726569421727,0.01667605,59261.0,59260.0,0.36998567]
[1726569421928,0.01667605,59261.0,59260.0,0.52998567]
[1726569422432,0.01667605,59261.0,59260.0,0.36998567]
[1726569424138,0.10105205,59261.0,59260.0,0.36998567]
[1726569424531,0.18542805,59261.0,59260.0,0.36998567]
[1726569424730,0.34542805,59261.0,59260.0,0.36998567]
[1726569425140,0.26105205,59261.0,59260.0,0.36998567]
[1726569425444,0.10105205,59261.0,59260.0,0.36998567]
[1726569426736,0.18542805,59261.0,59260.0,0.36998567]
[1726569427131,0.10105205,59261.0,59260.0,0.36998567]
[1726569427930,0.18542805,59261.0,59260.0,0.36998567]
[1726569428937,0.10105205,59261.0,59260.0,0.36998567]
[1726569431036,0.01667605,59261.0,59260.0,0.36998567]
[1726569432139,0.01667605,59261.0,59260.0,0.45436367]
[1726569432337,0.01667605,59261.0,59260.0,0.36998567]
[1726569432541,0.01667605,59261.0,59260.0,0.45436367]
[1726569433046,0.01667605,59261.0,59260.0,0.45336367]
[1726569433347,0.01667605,59261.0,59260.0,0.45436367]
[1726569435549,0.28166654,59272.0,59260.0,1.56060367]
[1726569435852,0.01669315,59267.0,59265.0,0.445971]
[1726569436246,0.01669315,59267.0,59265.0,0.45235667]
[1726569436750,0.15275911,59266.0,59265.0,0.36798567]
[1726569437250,0.06839011,59266.0,59265.0,0.36898567]
[1726569437751,0.06839011,59266.0,59265.0,0.36998567]
[1726569437946,0.06839011,59266.0,59265.0,0.45435667]
[1726569439755,0.06839011,59266.0,59265.0,0.53872767]
[1726569439944,0.06839011,59266.0,59265.0,0.45435667]
[1726569440358,0.06839011,59266.0,59265.0,1.56055667]
[1726569441255,0.06839011,59266.0,59265.0,1.56955667]
[1726569441562,0.06839011,59266.0,59265.0,1.58355667]
[1726569442458,0.06839011,59266.0,59265.0,0.98355667]
[1726569442753,0.15275911,59266.0,59265.0,0.39298567]
[1726569442964,0.15275911,59266.0,59265.0,0.38998567]
[1726569443347,0.15275911,59266.0,59265.0,0.46335667]
[1726569443348,0.06839011,59266.0,59265.0,0.46335667]
[1726569443547,0.06839011,59266.0,59265.0,0.47335667]
[1726569443944,0.06839011,59266.0,59265.0,0.46335667]
[1726569444150,0.06839011,59266.0,59265.0,0.47035667]
[1726569444352,0.06839011,59266.0,59265.0,0.46635667]
[1726569445156,0.06839011,59266.0,59265.0,0.55072767]
[1726569445961,0.06839011,59266.0,59265.0,0.54672767]
[1726569446162,0.06839011,59266.0,59265.0,0.54272767]
[1726569446658,0.06839011,59266.0,59265.0,0.53972767]
[1726569446855,0.06839011,59266.0,59265.0,0.54272767]
[1726569447249,0.06839011,59266.0,59265.0,0.62709867]
[1726569447454,0.00026654,59272.0,59271.0,0.084362]
[1726569447661,0.01734944,59272.0,59271.0,0.605962]
[1726569447846,0.00026654,59272.0,59271.0,0.605962]
[1726569448461,0.00026654,59272.0,59271.0,0.61234767]
[1726569450759,0.00026654,59272.0,59271.0,0.69670967]
[1726569451160,0.01725175,59272.0,59271.0,0.69670967]
[1726569451464,0.00026654,59272.0,59271.0,0.69670967]
[1726569452059,0.00026654,59272.0,59271.0,0.78107167]
[1726569452559,0.00026654,59272.0,59271.0,0.69670967]
[1726569453559,0.016495,59276.0,59275.0,0.253068]
[1726569453766,0.084345,59284.0,59282.0,0.084346]
[1726569454072,0.01643477,59284.0,59282.0,0.445146]
[1726569454458,0.01643477,59284.0,59282.0,0.45153167]
[1726569455060,0.01643477,59284.0,59282.0,0.61153167]
[1726569455452,0.3067,59292.0,59282.0,1.20191767]
[1726569455653,0.3067,59292.0,59291.0,0.084334]
[1726569455865,0.3067,59292.0,59291.0,0.445934]
[1726569456461,0.3235705,59292.0,59291.0,0.45231967]
[1726569457064,0.3235705,59292.0,59291.0,0.36898567]
[1726569457271,0.3235705,59292.0,59291.0,0.36998567]
[1726569457458,0.3235705,59292.0,59291.0,0.45431967]
[1726569458572,0.5679025,59292.0,59291.0,0.36998567]
[1726569458867,0.5679025,59292.0,59287.0,0.3608]
[1726569459072,0.5687025,59292.0,59287.0,0.3608]
[1726569459274,0.084334,59291.0,59287.0,0.3608]
[1726569459468,0.16,59288.0,59287.0,0.3608]
[1726569459866,0.4843705,59292.0,59287.0,0.3608]
[1726569460060,0.084335,59290.0,59287.0,0.3608]
[1726569460575,0.16,59288.0,59287.0,0.3608]
[1726569460766,0.244338,59288.0,59287.0,0.3608]
[1726569462776,0.084338,59288.0,59287.0,0.3608]
[1726569463272,0.001,59288.0,59287.0,0.3608]
[1726569463870,0.085338,59288.0,59287.0,0.3608]
[1726569464064,0.245338,59288.0,59287.0,0.3608]
[1726569464466,0.329676,59288.0,59287.0,0.3608]
[1726569464788,0.245338,59288.0,59287.0,0.3608]
[1726569465368,0.329676,59288.0,59287.0,0.3608]
[1726569466190,0.169676,59288.0,59287.0,0.3608]
[1726569469370,0.085338,59288.0,59287.0,0.3608]
[1726569470776,0.001,59288.0,59287.0,0.3608]
[1726569470971,0.001,59288.0,59287.0,0.445139]
[1726569471574,0.085338,59288.0,59287.0,0.3608]
[1726569471778,0.001,59288.0,59287.0,0.3608]
[1726569472291,0.085338,59288.0,59287.0,0.3608]
[1726569479380,0.001,59288.0,59287.0,0.3608]
[1726569479584,0.085338,59288.0,59287.0,0.3608]
[1726569481788,0.329676,59288.0,59287.0,0.3608]
[1726569485689,0.169676,59288.0,59287.0,0.3608]
[1726569485884,0.329676,59288.0,59287.0,0.3608]
[1726569487194,0.414014,59288.0,59287.0,0.3608]
[1726569488091,0.414014,59288.0,59287.0,0.35449986]
[1726569488585,0.329676,59288.0,59287.0,0.35449986]
[1726569488991,0.414014,59288.0,59287.0,0.35449986]
[1726569489894,0.084344,59284.0,59283.0,0.3608]
[1726569490090,0.09336683,59284.0,59283.0,0.3608]
[1726569491589,0.09336683,59284.0,59283.0,0.3638]
[1726569492977,0.10676229,59284.0,59283.0,0.3668]
[1726569493179,0.02241829,59284.0,59283.0,0.3668]
[1726569494094,0.01379546,59284.0,59283.0,0.451145]
[1726569494806,0.01379546,59284.0,59283.0,0.99259]
[1726569494994,0.01379546,59284.0,59283.0,0.908245]
[1726569496081,0.01379546,59284.0,59283.0,0.748245]
[1726569500692,0.09813946,59284.0,59283.0,0.748245]
[1726569502086,0.01379546,59284.0,59283.0,0.748245]
[1726569503097,0.18248346,59284.0,59283.0,0.3668]
[1726569503295,0.168698,59280.0,59279.0,0.00252998]
[1726569503498,0.169098,59280.0,59279.0,0.00252998]
[1726569504297,0.169098,59280.0,59267.0,0.3608]
[1726569504298,0.084352,59278.0,59267.0,0.3608]
[1726569504502,0.1604,59271.0,59267.0,0.3647]
[1726569504815,0.0004,59271.0,59270.0,0.084363]
[1726569505099,0.0004,59271.0,59270.0,0.605163]
[1726569505301,0.0004,59271.0,59270.0,0.445163]
[1726569505491,0.0004,59271.0,59270.0,0.3608]
[1726569505695,0.084353,59278.0,59270.0,0.3608]
[1726569505888,0.3043,59283.0,59270.0,0.3608]
[1726569505889,0.084356,59276.0,59270.0,0.445163]
[1726569506089,0.244351,59279.0,59275.0,0.3608]
[1726569506293,0.16,59279.0,59278.0,0.0004]
[1726569506902,0.244351,59279.0,59278.0,0.0004]
[1726569507693,0.249351,59279.0,59278.0,0.0004]
[1726569508009,0.254351,59279.0,59278.0,0.0004]
[1726569508492,0.084355,59276.0,59275.0,0.3608]
[1726569508693,0.084362,59271.0,59270.0,0.3608]
[1726569508898,0.244762,59271.0,59270.0,0.3608]
[1726569509199,0.244362,59271.0,59270.0,0.3608]
[1726569509804,0.327724,59271.0,59270.0,0.3608]
[1726569510008,0.084365,59269.0,59268.0,0.00253073]
[1726569510193,0.084765,59269.0,59268.0,0.00253073]
[1726569510393,0.0004,59269.0,59262.0,0.3608]
[1726569510602,0.1604,59263.0,59262.0,0.3608]
[1726569510810,0.244773,59263.0,59262.0,0.3608]
[1726569512398,0.244773,59263.0,59258.0,0.3608]
[1726569512399,0.084379,59259.0,59258.0,0.3608]
[1726569512601,0.244779,59259.0,59258.0,0.3608]
[1726569513010,0.238779,59259.0,59258.0,0.3608]
[1726569513699,0.232779,59259.0,59258.0,0.3608]
[1726569514002,0.233779,59259.0,59258.0,0.3708]
[1726569514208,0.234779,59259.0,59258.0,0.3808]
[1726569514509,0.084381,59258.0,59250.0,0.3608]
[1726569514707,0.24479,59251.0,59250.0,0.3608]
[1726569515002,0.25317918,59251.0,59250.0,0.3608]
[1726569515207,0.21095059,59251.0,59250.0,0.3608]
[1726569516110,0.21095059,59251.0,59244.0,0.2921]
[1726569516111,0.47897141,59251.0,59241.0,0.0039]
[1726569516314,0.501184,59251.0,59242.0,0.3608]
[1726569516500,0.500784,59251.0,59242.0,0.3608]
[1726569516699,0.16,59247.0,59242.0,0.3608]
[1726569516904,0.081401,59244.0,59242.0,0.3608]
[1726569517100,0.084395,59248.0,59242.0,0.3608]
[1726569517409,0.02348387,59251.0,59247.0,0.3612]
[1726569517612,0.01760387,59251.0,59250.0,0.0004]
[1726569517910,0.10499387,59251.0,59250.0,0.0004]
[1726569518104,0.10099387,59251.0,59250.0,0.0004]
[1726569519005,0.26099387,59251.0,59250.0,0.0004]
[1726569519203,0.26399387,59251.0,59250.0,0.0004]
[1726569519710,0.70918387,59251.0,59250.0,0.0004]
[1726569520102,0.084405,59241.0,59235.0,0.0039]
[1726569520303,0.084408,59239.0,59233.0,0.5848]
[1726569520511,0.0004,59234.0,59233.0,0.5848]
[1726569520706,0.084414,59235.0,59233.0,0.5848]
[1726569521015,0.084411,59237.0,59234.0,0.0004]
[1726569521212,0.084411,59237.0,59236.0,0.0004]
[1726569522114,0.244411,59237.0,59236.0,0.0004]
[1726569522617,0.084411,59237.0,59236.0,0.0004]
[1726569522916,0.085411,59237.0,59236.0,0.0004]
[1726569523521,0.001,59237.0,59236.0,0.0004]
[1726569523721,0.001,59237.0,59236.0,0.5212]
[1726569524024,0.001,59237.0,59236.0,0.445612]
[1726569525616,0.001,59237.0,59236.0,0.605612]
[1726569527414,0.001,59237.0,59236.0,0.445612]
[1726569530622,0.001,59237.0,59236.0,0.605612]
[1726569531319,0.08541,59237.0,59236.0,0.605612]
[1726569531821,0.08641,59237.0,59236.0,0.605612]
[1726569533319,0.08641,59237.0,59236.0,0.445612]
[1726569533522,0.08541,59237.0,59236.0,0.445612]
[1726569534223,0.08441,59237.0,59236.0,0.445612]
[1726569534516,0.0975709,59241.0,59240.0,0.084406]
[1726569534719,0.0975709,59241.0,59240.0,0.084806]
[1726569536117,0.1005709,59241.0,59240.0,0.084806]
[1726569537019,0.0985709,59241.0,59240.0,0.084806]
[1726569537324,0.0995709,59241.0,59240.0,0.084806]
[1726569537823,0.0985709,59241.0,59240.0,0.084806]
[1726569538122,0.0151659,59241.0,59240.0,0.084806]
[1726569538622,0.0995709,59241.0,59240.0,0.16828943]
[1726569539027,0.0995709,59241.0,59240.0,0.29692491]
[1726569539218,0.0995709,59241.0,59240.0,0.21344148]
[1726569539923,0.0985709,59241.0,59240.0,0.21344148]
[1726569540127,0.0995709,59241.0,59240.0,0.21344148]
[1726569541324,0.0995709,59241.0,59240.0,0.12903548]
[1726569541524,0.2595709,59241.0,59240.0,0.12903548]
[1726569541729,0.2595709,59241.0,59240.0,0.21273738]
[1726569542420,0.2595709,59241.0,59240.0,0.12903548]
[1726569543616,0.2595709,59241.0,59240.0,0.12903765]
[1726569544830,0.0995709,59241.0,59240.0,0.12903765]
[1726569545026,0.0995709,59241.0,59240.0,0.22915558]
[1726569545231,0.0995709,59241.0,59240.0,0.12903765]
[1726569545422,0.0995709,59241.0,59240.0,0.0004]
[1726569546330,0.0151659,59241.0,59240.0,0.084806]
[1726569547040,0.0995709,59241.0,59240.0,0.0004]
[1726569547540,0.0995709,59241.0,59240.0,0.084806]
[1726569548723,0.0151659,59241.0,59240.0,0.084806]
[1726569549023,0.0995709,59241.0,59240.0,0.084806]
[1726569549226,0.0151659,59241.0,59240.0,0.084806]
[1726569549632,0.0995709,59241.0,59240.0,0.0004]
[1726569549833,0.2595709,59241.0,59240.0,0.0004]
[1726569550724,0.1751659,59241.0,59240.0,0.0004]
[1726569552027,0.2595709,59241.0,59240.0,0.0004]
[1726569552423,0.2595709,59241.0,59240.0,0.12903682]
[1726569554039,0.1995709,59241.0,59240.0,0.12903682]
[1726569554540,0.1995709,59241.0,59240.0,0.28560973]
[1726569554860,0.3683809,59241.0,59240.0,0.12903682]
[1726569555056,0.2839759,59241.0,59240.0,0.07440884]
[1726569555346,0.2839759,59241.0,59230.0,0.3608]
[1726569555347,1.3059709,59241.0,59233.0,0.10064144]
[1726569555642,1.3059709,59241.0,59230.0,0.3608]
[1726569555643,0.084418,59232.0,59231.0,0.10064144]
[1726569555933,0.184818,59232.0,59231.0,0.10064144]
[1726569556140,0.084419,59231.0,59230.0,0.46144144]
[1726569556342,0.084819,59231.0,59230.0,0.3608]
[1726569556640,0.083819,59231.0,59230.0,0.3608]
[1726569556836,0.168238,59231.0,59230.0,0.3608]
[1726569557037,0.168238,59231.0,59222.0,0.0039]
[1726569557038,0.44562,59231.0,59222.0,0.0039]
[1726569557243,0.44562,59231.0,59219.0,0.0039]
[1726569557244,0.4602,59223.0,59219.0,0.0039]
[1726569557535,0.4602,59223.0,59215.0,0.00253313]
[1726569557536,0.1,59219.0,59215.0,0.00253313]
[1726569557744,0.4612,59216.0,59215.0,0.00253313]
[1726569557932,0.5202,59216.0,59215.0,0.00253313]
[1726569559342,0.61770306,59216.0,59215.0,0.00253313]
[1726569559741,0.53326306,59216.0,59208.0,0.0039]
[1726569559940,0.53326306,59216.0,59205.0,0.3026]
[1726569559941,0.1604,59209.0,59205.0,0.3026]
[1726569560138,0.0004,59206.0,59205.0,0.3026]
[1726569560340,0.11814678,59209.0,59205.0,0.3026]
[1726569560530,0.11814678,59209.0,59208.0,0.0004]
[1726569563937,0.11814678,59209.0,59208.0,0.084852]
[1726569564241,0.49259269,59209.0,59208.0,0.084852]
[1726569567137,0.01404591,59209.0,59208.0,0.084852]
[1726569567344,0.01404591,59209.0,59208.0,0.690104]
[1726569568239,0.0004,59209.0,59208.0,0.690104]
[1726569568646,0.0004,59209.0,59208.0,0.445652]
[1726569568851,0.3612,59209.0,59208.0,0.084852]
[1726569569940,0.0004,59209.0,59208.0,0.084852]
[1726569572352,0.084455,59207.0,59206.0,0.084455]
[1726569572549,0.084455,59206.0,59205.0,0.3026]
[1726569572846,0.084855,59206.0,59205.0,0.3026]
[1726569573349,0.0004,59206.0,59205.0,0.387056]
[1726569574044,0.084855,59206.0,59205.0,0.3026]
[1726569574552,0.0004,59206.0,59205.0,0.387056]
[1726569575454,0.01374709,59206.0,59205.0,0.387056]
[1726569577756,0.09820209,59206.0,59203.0,0.084459]
[1726569577944,0.3612,59204.0,59203.0,0.084459]
[1726569579355,0.3612,59204.0,59202.0,0.08446]
[1726569579658,0.0004,59203.0,59202.0,0.08446]
[1726569580050,0.1604,59203.0,59202.0,0.08446]
[1726569581061,0.1614,59203.0,59202.0,0.08446]
[1726569582548,0.1624,59203.0,59202.0,0.08446]
[1726569584452,0.246859,59203.0,59201.0,0.00253342]
[1726569584752,0.08486,59202.0,59201.0,0.08699342]
[1726569585959,0.0004,59202.0,59201.0,0.08699342]
[1726569586365,0.0014,59202.0,59201.0,0.08699342]
[1726569586560,0.0024,59202.0,59201.0,0.08699342]
[1726569588661,0.08686,59202.0,59201.0,0.08699342]
[1726569589059,0.0024,59202.0,59201.0,0.08699342]
[1726569590469,0.0024,59202.0,59201.0,0.21572079]
[1726569591761,0.0024,59202.0,59201.0,0.31583625]
[1726569592165,0.0024,59202.0,59201.0,0.40029825]
[1726569592378,0.0024,59202.0,59201.0,0.30018279]
[1726569593754,0.0024,59202.0,59201.0,0.38464479]
[1726569593962,0.0004,59207.0,59201.0,1.55215996]
[1726569594163,0.0004,59207.0,59206.0,0.084855]
[1726569594358,0.0004,59207.0,59206.0,0.37025496]
[1726569595274,0.0131552,59208.0,59207.0,0.084453]
[1726569595468,0.084452,59208.0,59207.0,0.31428293]
[1726569596473,0.16,59209.0,59208.0,0.084452]
[1726569596669,0.244445,59213.0,59209.0,0.08445]
[1726569596867,0.244445,59213.0,59209.0,0.21357737]
[1726569597069,0.244445,59213.0,59209.0,0.21317737]
[1726569597371,0.244445,59213.0,59209.0,0.08445]
[1726569598069,0.37435327,59210.0,59209.0,0.08445]
[1726569598659,0.08445,59209.0,59208.0,0.0014]
[1726569598859,0.08485,59209.0,59208.0,0.0014]
[1726569599475,0.08485,59209.0,59208.0,0.0004]
[1726569600077,0.08485,59209.0,59208.0,0.084852]
[1726569600572,0.08485,59209.0,59208.0,0.0004]
[1726569600981,0.0004,59209.0,59208.0,0.0004]
[1726569601182,0.0004,59209.0,59208.0,0.084852]
[1726569601875,0.0004,59209.0,59208.0,0.0004]
[1726569601876,0.08485,59209.0,59208.0,0.0004]
[1726569602974,0.08485,59209.0,59208.0,0.084852]
[1726569603176,0.0004,59209.0,59208.0,0.084852]
[1726569603371,0.0004,59209.0,59208.0,0.169304]
[1726569603876,0.0004,59209.0,59208.0,0.513856]
[1726569604580,0.3608,59216.0,59215.0,0.084442]
[1726569604883,0.3608,59222.0,59221.0,0.084433]
[1726569604884,0.36168,59222.0,59221.0,0.084433]
[1726569605069,0.445232,59222.0,59221.0,0.084833]
[1726569605667,0.04218455,59222.0,59221.0,0.084833]
[1726569606882,0.05618455,59222.0,59221.0,0.084833]
[1726569607182,0.06982495,59222.0,59221.0,0.084833]
[1726569607392,0.08282495,59222.0,59221.0,0.084833]
[1726569608180,0.0406404,59222.0,59221.0,0.084833]
[1726569608680,0.0406404,59222.0,59221.0,0.15188927]
[1726569610585,0.0406404,59222.0,59221.0,0.084833]
[1726569610772,0.0406404,59222.0,59221.0,0.169266]
[1726569610968,0.0406404,59222.0,59221.0,0.23632227]
[1726569611171,0.0406404,59222.0,59221.0,0.15188927]
[1726569612587,0.0406404,59222.0,59221.0,0.084833]
[1726569613881,0.1250724,59222.0,59221.0,0.0004]
[1726569614188,0.084443,59214.0,59212.0,0.0039]
[1726569614480,0.9064,59213.0,59208.0,0.084852]
[1726569614788,0.16,59211.0,59210.0,0.084449]
[1726569615284,0.244448,59211.0,59206.0,0.084454]
[1726569615487,0.1604,59207.0,59206.0,0.084454]
[1726569617990,0.1604,59207.0,59201.0,0.0036]
[1726569618198,0.5212,59202.0,59201.0,0.0036]
[1726569619085,0.60566,59202.0,59201.0,0.0036]
[1726569619290,0.60666,59202.0,59201.0,0.0036]
[1726569619994,0.60766,59202.0,59201.0,0.0036]
[1726569620579,0.6208777,59202.0,59201.0,0.0036]
[1726569622782,0.7053377,59202.0,59201.0,0.0036]
[1726569623189,0.084473,59193.0,59188.0,0.2551]
[1726569623388,0.084476,59191.0,59188.0,0.2551]
[1726569623584,0.1608,59189.0,59188.0,0.2551]
[1726569623789,0.16,59189.0,59188.0,0.2551]
[1726569624191,0.16,59189.0,59188.0,0.33958]
[1726569625991,0.161,59189.0,59188.0,0.33958]
[1726569626202,0.162,59189.0,59188.0,0.33958]
[1726569627697,0.16,59192.0,59188.0,0.38384803]
[1726569627996,0.16,59192.0,59191.0,0.16826108]
[1726569628299,0.16,59192.0,59191.0,0.29701109]
[1726569628495,0.16,59192.0,59191.0,0.084476]
[1726569628892,0.161,59192.0,59191.0,0.084476]
[1726569629092,0.162,59192.0,59191.0,0.084476]
[1726569629391,0.084476,59191.0,59190.0,0.08379138]
[1726569629701,0.084479,59189.0,59188.0,0.08379138]
[1726569629917,0.245279,59189.0,59188.0,0.2125398]
[1726569630094,0.084482,59187.0,59186.0,0.08379138]
[1726569630402,0.245279,59189.0,59185.0,0.44459138]
[1726569630403,0.084483,59186.0,59185.0,0.44459138]
[1726569630596,0.1608,59189.0,59181.0,0.2561]
[1726569630597,0.084485,59185.0,59184.0,0.08379138]
[1726569630795,0.245285,59185.0,59182.0,0.16827938]
[1726569631108,0.244485,59185.0,59181.0,0.33989138]
[1726569631292,0.244485,59185.0,59181.0,0.42438138]
[1726569631293,0.0008,59182.0,59181.0,0.42438138]